bitfinex/quotes_ETHUSD_20260121
["timestamp","ask_amount","ask_price","bid_price","bid_amount"]
[1769009266488,0.309175,3000.4,2999.2,0.551]
[1769009266633,12.01836723,3001.4,2999.3,12.12941751]
[1769009266833,0.30957726,3001.3,2999.3,12.12941751]
[1769009267133,12.01836723,3001.9,2999.3,12.12941751]
[1769009267134,0.30957726,3001.2,2999.3,12.12941751]
[1769009267360,0.30957726,3001.1,2999.3,12.12941751]
[1769009267686,0.30957726,3001.0,2999.4,6.66800026]
[1769009267832,12.36959866,3000.9,2999.1,0.33343843]
[1769009268038,0.30957726,3000.8,2999.3,3.3341053]
[1769009268733,0.30957726,3000.7,2999.2,0.551]
[1769009268968,0.30957726,3000.6,2999.3,3.33410322]
[1769009269263,0.30957726,3000.5,2999.3,3.33410322]
[1769009269462,0.30957726,3000.4,2999.4,0.38851032]
[1769009269677,0.30957726,3000.3,2999.4,0.38851032]
[1769009269832,0.30957726,3000.2,2999.4,0.38851032]
[1769009270038,18.01945,3001.3,2999.2,3.8851782]
[1769009270238,0.31061917,3001.2,2999.2,3.8851782]
[1769009270438,0.31061917,3001.1,2999.3,3.33410858]
[1769009270676,0.31061917,3001.0,2999.3,3.33410858]
[1769009270879,0.31061917,3000.9,2999.3,3.33410858]
[1769009271033,0.31093896,3000.8,2999.4,3.72249107]
[1769009271238,0.31093896,3000.7,2999.4,12.09605246]
[1769009271463,0.31093896,3000.6,2999.4,12.09605246]
[1769009271780,0.31093896,3000.5,2999.4,12.09605246]
[1769009272021,0.31093896,3000.4,2999.4,12.09605246]
[1769009272166,0.31093896,3000.3,2999.5,1.54301238]
[1769009272366,0.31093896,3000.2,2999.6,0.551]
[1769009272599,0.31093896,3000.1,2999.6,0.551]
[1769009272781,0.31093896,3000.0,2999.6,0.551]
[1769009272983,12.310711,3001.3,2999.6,0.551]
[1769009273179,2.74423448,3001.2,2999.5,0.551]
[1769009273504,0.31132666,3001.1,2999.5,0.551]
[1769009273702,0.31132666,3001.0,2999.5,0.551]
[1769009273902,0.31132666,3000.9,2999.5,0.551]
[1769009274077,0.31132666,3000.8,2999.5,0.551]
[1769009274284,0.31132666,3000.7,2999.5,0.551]
[1769009274589,0.31132666,3000.6,2999.5,0.551]
[1769009274790,0.31132666,3000.5,2999.4,0.0166654]
[1769009274986,0.31132666,3000.4,2999.2,15.59276248]
[1769009275186,0.31132666,3000.3,2999.3,3.33405481]
[1769009275381,5.04823842,3001.2,2999.2,12.2585416]
[1769009275382,0.31132666,3000.2,2999.2,12.2585416]
[1769009275594,0.31132666,3000.1,2999.2,15.59270995]
[1769009275793,0.31132666,3000.0,2999.3,1.55937099]
[1769009276101,0.31132666,2999.9,2999.3,2.11037099]
[1769009276275,12.01836723,3001.1,2999.3,2.11037099]
[1769009276477,0.31167745,3001.0,2999.3,2.11037099]
[1769009276703,0.31167745,3000.9,2999.3,2.11037099]
[1769009276999,1.23300447,3000.9,2999.4,1.71520809]
[1769009277199,0.31166023,3000.8,2999.4,1.71520809]
[1769009277497,0.31164369,3000.7,2999.4,1.71520809]
[1769009277800,0.31164322,3000.6,2999.4,5.04917343]
[1769009278004,0.31164322,3000.5,2999.5,0.551]
[1769009278197,15.35208926,3001.5,2999.4,16.75671503]
[1769009278198,0.31164322,3000.4,2999.4,15.04150694]
[1769009278393,0.31164322,3000.3,2999.5,0.551]
[1769009278596,0.31164322,3000.2,2999.5,0.551]
[1769009278795,0.31164322,3000.1,2999.5,0.551]
[1769009278993,0.31164322,3000.0,2999.5,0.551]
[1769009279174,0.31164322,2999.9,2999.5,2.11025069]
[1769009279374,12.42234116,3001.2,2999.5,2.11025069]
[1769009279604,0.31167532,3001.1,2999.5,0.551]
[1769009279810,4.961509,3000.9,2999.6,1e-08]
[1769009280111,0.31167532,3000.8,2999.6,1e-08]
[1769009280301,0.31167532,3000.7,2999.6,1e-08]
[1769009280618,0.31167532,3000.6,2999.6,1e-08]
[1769009280781,0.31167532,3000.5,2999.6,1e-08]
[1769009281118,3.33367834,3001.5,2999.6,12.50488925]
[1769009281119,0.23116912,3000.4,2999.6,12.50488925]
[1769009281322,0.002,3001.5,2999.8,12.50488924]
[1769009281521,0.002,3001.5,3000.0,12.50488924]
[1769009281817,0.002,3001.5,3000.1,0.01664596]
[1769009281999,0.002,3001.5,3000.2,6.66622224]
[1769009282173,0.002,3001.5,2999.1,12.50588924]
[1769009282174,0.002,3000.8,2999.1,12.50588924]
[1769009282373,0.002,3000.8,2999.2,0.551]
[1769009282581,0.002,3000.8,2999.4,3.33393553]
[1769009282776,0.002,3000.8,2999.2,13.05588924]
[1769009283104,0.002,3000.8,3000.0,15.83814125]
[1769009283308,0.002,3000.8,3000.0,12.50488924]
[1769009283809,0.002,3000.8,2999.5,3.33383262]
[1769009284174,0.04365555,3000.8,2999.1,12.50588924]
[1769009284377,12.46599671,3000.8,2999.2,0.551]
[1769009284613,13.66894083,3000.7,2999.1,0.001]
[1769009284796,12.42234116,3000.5,2999.1,0.001]
[1769009285202,1.24659967,3000.7,2999.1,3.33531832]
[1769009285397,4.388452,3000.7,2999.1,3.33531832]
[1769009285611,4.388452,3000.7,2999.1,3.33529763]
[1769009285612,2.140523,3000.7,2999.1,3.33529763]
[1769009285807,2.140523,3000.7,2999.2,3.33421515]
[1769009285808,14.56286416,3000.7,2999.2,3.33421515]
[1769009286010,12.42234116,3000.7,2999.1,0.001]
[1769009286413,0.04165833,3000.6,2999.1,0.001]
[1769009286708,1.24639995,3000.5,2999.1,0.001]
[1769009288311,1.24639995,3000.5,2998.3,3.33520658]
[1769009288312,12.42234116,3000.3,2998.3,3.33520658]
[1769009288621,12.42234116,3000.0,2998.3,3.33514701]
[1769009288778,12.42234116,3000.0,2998.2,12.50488924]
[1769009289104,12.42234116,3000.0,2996.8,3.33686255]
[1769009289105,12.42234116,2999.7,2997.8,15.84057701]
[1769009289297,30.0,2999.5,2997.3,12.50488924]
[1769009289482,12.42234116,2999.4,2997.3,12.50488924]
[1769009289679,12.42234116,2999.4,2997.7,3.33583169]
[1769009289878,13.66457528,2999.6,2997.4,12.50488924]
[1769009290082,1.24223412,2999.6,2997.6,12.50488924]
[1769009290307,0.551,3000.0,2997.8,12.50488924]
[1769009290308,12.97334116,3000.0,2997.8,12.50488924]
[1769009290510,12.46400921,2999.9,2997.8,12.50488924]
[1769009290816,12.42234116,2999.9,2997.8,12.50488924]
[1769009291202,0.04166944,2999.8,2997.8,12.50488924]
[1769009291402,12.42234116,2999.7,2997.7,1.58577131]
[1769009291713,12.42234116,2999.5,2997.5,3.33611342]
[1769009291912,12.42234116,2999.5,2997.6,0.01670989]
[1769009292117,12.42234116,2999.5,2997.7,10.00767252]
[1769009292611,2.42133446,2999.6,2997.8,12.52159579]
[1769009292910,12.42234116,2999.8,2997.8,12.50488924]
[1769009293112,12.42234116,2999.7,2997.8,12.50488924]
[1769009293413,0.31135264,2999.6,2997.9,0.01670265]
[1769009293718,12.42234116,2999.7,2998.0,0.0167021]
[1769009293719,0.31135264,2999.5,2998.0,0.0167021]
[1769009293915,0.31135264,2999.4,2997.8,12.50488924]
[1769009294119,0.31135264,2999.3,2997.9,15.0897345]
[1769009294324,1.24639995,3000.5,2998.1,12.50488924]
[1769009294488,0.31111803,3000.4,2998.1,12.50488924]
[1769009294688,0.31111803,3000.3,2998.1,12.50488924]
[1769009294890,0.31111803,3000.2,2998.1,12.50488924]
[1769009295141,0.3527833,3000.1,2998.3,12.50488924]
[1769009295429,0.31111803,3000.0,2998.3,12.50488924]
[1769009295652,12.42234116,3000.3,2998.3,12.50488924]
[1769009295653,0.31111803,2999.9,2998.3,12.50488924]
[1769009295858,0.31111803,2999.8,2998.3,12.50488924]
[1769009295986,0.31111803,2999.7,2998.3,12.50488924]
[1769009296184,12.15304973,2999.6,2997.2,12.14265305]
[1769009296434,11.8419317,2999.4,2998.3,0.001]
[1769009296589,0.31111803,2999.3,2998.2,3.33526024]
[1769009296792,0.31111803,2999.2,2997.8,3.33573067]
[1769009297101,0.31111803,2999.1,2998.3,3.33520382]
[1769009297291,0.31111803,2999.0,2998.3,3.33521289]
[1769009297493,0.31111803,2998.9,2998.2,3.33531037]
[1769009297716,11.8419317,2999.8,2998.2,3.33531037]
[1769009297914,13.88371704,2999.7,2998.1,3.33542983]
[1769009298100,11.8419317,2999.5,2997.4,12.14265305]
[1769009298302,12.1947042,2999.4,2997.5,6.67222684]
[1769009298503,1.68901701,2999.7,2997.3,3.33627218]
[1769009298504,11.8419317,2999.2,2997.3,3.33633451]
[1769009298705,11.8419317,2999.0,2997.4,3.33620292]
[1769009298988,13.36833212,2998.9,2997.2,3.33639995]
[1769009299188,11.8419317,2998.5,2996.1,0.0209722]
[1769009299390,11.8419317,2998.2,2996.1,0.0209722]
[1769009299610,0.3110975,2998.1,2996.2,12.14265305]
[1769009299799,0.3110975,2998.0,2996.6,3.33707211]
[1769009300007,0.3110975,2997.9,2996.7,12.49310186]
[1769009300322,15.386034,2998.8,2996.8,3.33682586]
[1769009300522,0.31070987,2998.7,2996.8,6.67371854]
[1769009300818,0.31070987,2998.6,2996.8,6.67371854]
[1769009301022,10.075189,2998.4,2996.8,6.67371854]
[1769009301223,14.37542463,2998.3,2996.8,3.33682586]
[1769009301519,12.15264157,2998.2,2996.6,3.33703985]
[1769009301713,12.15264157,2998.1,2996.7,3.33694976]
[1769009301917,12.15264157,2998.0,2996.7,3.33694976]
[1769009302113,0.31070987,2997.9,2996.7,3.33694976]
[1769009302318,6.79712862,2998.9,2996.1,0.0209722]
[1769009302319,13.36790573,2997.8,2996.1,0.0209722]
[1769009302516,0.31070987,2997.7,2996.7,3.33698043]
[1769009302716,13.05719586,2997.8,2996.7,3.33698043]
[1769009302717,0.31070987,2997.6,2996.7,3.33698043]
[1769009303012,0.31070987,2997.5,2996.7,6.67400493]
[1769009303326,0.551,2998.1,2996.7,6.67400493]
[1769009303499,0.31005398,2998.0,2996.7,6.67400493]
[1769009303697,0.31005398,2997.9,2996.7,6.67400493]
[1769009303892,0.31005398,2997.8,2996.7,6.67400493]
[1769009304093,0.551,2998.1,2996.7,7.67512443]
[1769009304327,0.30990333,2998.0,2996.7,7.67512443]
[1769009304533,0.30990333,2997.9,2996.7,7.67512443]
[1769009304827,11.8419317,2998.3,2996.7,7.67512443]
[1769009304828,11.8419317,2998.3,2996.8,0.01674103]
[1769009305006,11.8419317,2998.3,2996.7,11.01212846]
[1769009305007,0.86089319,2998.2,2996.7,11.01212846]
[1769009305205,0.30989319,2998.1,2996.7,7.67512443]
[1769009305417,1.18419317,2998.2,2996.7,11.01212846]
[1769009305748,11.8419317,2999.3,2996.8,12.14265305]
[1769009305907,0.551,2999.1,2996.8,12.14265305]
[1769009306107,12.19336374,2999.0,2996.8,12.14265305]
[1769009306328,12.19336374,2999.0,2996.9,10.01034402]
[1769009306329,0.30975148,2998.9,2996.9,10.01034402]
[1769009306545,11.8419317,2998.7,2997.0,2.21529971]
[1769009306749,11.8419317,2998.0,2996.1,0.0209722]
[1769009307046,11.299696,2998.4,2996.1,0.0209722]
[1769009307047,16.89017012,2997.5,2996.1,0.0209722]
[1769009307198,12.15168318,2997.4,2996.1,0.0209722]
[1769009307536,0.86075148,2997.3,2996.1,0.0209722]
[1769009307736,0.30975148,2997.2,2996.1,0.0209722]
[1769009307943,0.30975148,2997.2,2995.1,12.14265305]
[1769009307944,11.8419317,2997.0,2994.8,3.33905318]
[1769009308153,6.57315822,2996.9,2994.9,0.33390532]
[1769009308437,12.70268318,2996.8,2994.3,10.01903616]
[1769009308638,11.8419317,2996.6,2994.3,13.35871488]
[1769009308926,12.70268318,2996.5,2994.3,10.01903616]
[1769009309090,0.30975148,2996.4,2994.3,10.01903616]
[1769009309295,5.04823842,2996.9,2994.3,10.01903616]
[1769009309296,12.70221019,2996.3,2994.3,10.01903616]
[1769009309544,1.82122102,2996.2,2994.4,1.07898847]
[1769009309919,11.8419317,2995.1,2992.3,3.34184384]
[1769009310256,23.141062,2995.5,2992.9,12.14265305]
[1769009310478,5.04823842,2994.8,2992.3,12.14265305]
[1769009310623,11.8419317,2995.1,2992.5,12.14265305]
[1769009310824,20.461941,2995.6,2992.7,12.14265305]
[1769009311038,14.525142,2995.4,2993.1,3.34092265]
[1769009311233,26.3670737,2995.2,2992.8,12.14265305]
[1769009311433,11.8419317,2995.2,2992.8,12.14265305]
[1769009311634,11.8419317,2995.0,2991.6,12.14265305]
[1769009311834,20.186866,2994.6,2992.1,12.14265305]
[1769009312154,11.8419317,2994.6,2992.2,0.01685479]
[1769009312463,1.18419317,2994.5,2992.4,3.34179922]
[1769009312791,1.18419317,2994.5,2992.4,6.68359844]
[1769009313066,1.18419317,2994.5,2992.4,3.34179922]
[1769009313222,1.18419317,2994.5,2992.3,1.21595078]
[1769009313561,3.483777,2994.4,2992.3,4.55786168]
[1769009313734,1.30261249,2994.4,2992.4,12.94949353]
[1769009313939,21.028639,2994.7,2992.4,12.93263987]
[1769009314141,21.028639,2994.7,2992.5,0.552]
[1769009314339,11.8419317,2994.7,2992.6,7.23515176]
[1769009314539,11.9699317,2995.7,2992.8,12.14265305]
[1769009314746,11.8419317,2995.7,2992.8,12.14265305]
[1769009315064,0.17398726,2995.3,2992.9,5.161944]
[1769009315274,11.8419317,2995.7,2993.0,12.69465305]
[1769009315428,11.8419317,2995.5,2993.2,12.14265305]
[1769009315629,3.33791242,2995.9,2993.3,12.69465305]
[1769009315829,25.58599,2995.7,2993.4,1.26946531]
[1769009316025,20.825038,2995.5,2993.5,0.552]
[1769009316271,2.02280825,2995.8,2993.5,0.552]
[1769009316468,2.02280825,2995.8,2993.6,6.68091928]
[1769009316638,3.20069947,2995.7,2993.6,3.89245964]
[1769009316844,0.85615231,2995.6,2993.7,0.72330292]
[1769009317073,2.02280825,2995.8,2993.7,0.72330292]
[1769009317449,13.86473995,2995.8,2993.8,0.552]
[1769009317653,13.86473995,2995.8,2993.9,0.552]
[1769009318049,13.86473995,2995.8,2992.4,0.78998682]
[1769009318050,11.8419317,2994.7,2992.4,0.78998682]
[1769009318294,10.046979,2994.4,2992.5,3.89358974]
[1769009318461,11.8419317,2994.5,2992.5,3.89358974]
[1769009318665,11.8419317,2995.1,2992.5,22.71961789]
[1769009318891,11.8419317,2995.1,2992.6,0.552]
[1769009319181,1.18419317,2995.0,2992.7,2.82396179]
[1769009319381,1.18419317,2995.0,2992.7,14.96661484]
[1769009319593,1.18419317,2995.0,2992.8,12.69465305]
[1769009319997,1.18419317,2995.0,2992.9,0.552]
[1769009320169,11.8419317,2995.7,2992.9,0.552]
[1769009320170,11.8419317,2995.7,2993.9,0.001]
[1769009320371,3.603637,2995.4,2993.9,0.001]
[1769009320567,3.603637,2995.4,2991.1,12.14265305]
[1769009320568,30.0,2995.1,2991.1,12.14265305]
[1769009320790,30.0,2995.1,2991.7,12.14265305]
[1769009320791,11.8419317,2994.4,2991.7,12.14265305]
[1769009320966,11.8419317,2994.4,2991.9,12.14265305]
[1769009321171,11.8419317,2993.9,2991.8,1.21426531]
[1769009321401,11.8419317,2993.7,2992.0,3.3422319]
[1769009321570,1.82388734,2994.7,2991.9,0.552]
[1769009321571,11.8419317,2994.6,2991.9,0.552]
[1769009321771,0.128,2994.7,2992.4,3.34173579]
[1769009321772,0.128,2994.3,2992.4,3.34173579]
[1769009322109,11.8419317,2994.4,2992.5,0.0168531]
[1769009322403,6.767404,2994.8,2992.9,3.34120526]
[1769009322589,0.6895404,2994.7,2992.4,0.01684252]
[1769009322792,3.741285,2995.0,2992.3,12.14265305]
[1769009322990,3.741285,2995.0,2992.5,12.14265305]
[1769009323192,3.741285,2995.0,2992.6,0.01684362]
[1769009323404,11.8419317,2995.1,2992.6,12.15949667]
[1769009323713,5.43076,2995.0,2992.6,12.14265305]
[1769009323924,1.72726917,2994.9,2992.7,13.90891836]
[1769009324200,5.04823842,2995.4,2992.7,13.90891836]
[1769009324201,0.128,2995.4,2992.8,12.15949444]
[1769009324405,0.128,2995.4,2992.8,12.14265305]
[1769009324603,11.8419317,2995.2,2993.0,12.14265305]
[1769009324809,11.8419317,2995.2,2992.9,6.699316]
[1769009324810,7.87297,2995.1,2993.1,0.552]
[1769009325013,7.87297,2995.1,2992.9,6.68248186]
[1769009325180,2.01322639,2995.0,2993.2,0.552]
[1769009325380,1.97149017,2995.0,2993.0,13.04432889]
[1769009325703,2.683991,2995.4,2993.1,0.552]
[1769009325902,2.683991,2995.4,2993.0,13.04432889]
[1769009325903,3.356032,2995.4,2993.0,13.04432889]
[1769009326205,3.356032,2995.4,2993.1,0.552]
[1769009326393,12.37975264,2995.3,2992.5,3.34160575]
[1769009326593,12.37975264,2995.3,2991.8,3.34236849]
[1769009326594,12.01818234,2994.2,2992.0,3.34215179]
[1769009326905,13.8179,2994.0,2992.5,0.552]
[1769009327117,12.572555,2994.0,2992.5,0.552]
[1769009327289,9.780552,2994.0,2992.5,0.552]
[1769009327607,9.780552,2994.0,2992.6,0.552]
[1769009327796,2.17987343,2993.9,2992.6,0.48642536]
[1769009328196,2.17987343,2993.9,2991.8,12.04194833]
[1769009328396,2.17987343,2993.9,2992.6,0.552]
[1769009329384,2.17987343,2993.9,2992.7,0.552]
[1769009329584,4.0,2994.6,2992.7,0.54689999]
[1769009329996,12.01818234,2994.7,2992.6,6.68315176]
[1769009329997,5.49431812,2995.1,2992.6,3.34157588]
[1769009330196,0.30832695,2995.0,2992.8,0.552]
[1769009330420,0.30832695,2994.9,2992.8,0.552]
[1769009330710,21.315679,2995.5,2993.0,12.04194833]
[1769009330880,0.128,2995.6,2993.1,14.24851544]
[1769009330881,8.243951,2995.3,2993.1,14.24851544]
[1769009331082,0.3085006,2995.2,2993.1,14.24851544]
[1769009331278,0.3085006,2995.1,2993.1,14.24851544]
[1769009331475,22.821216,2995.5,2993.1,14.24851544]
[1769009331692,2.02280825,2995.8,2993.3,12.04194833]
[1769009331693,0.30871973,2995.4,2993.3,12.04194833]
[1769009332011,0.04173204,2995.3,2993.4,13.24614316]
[1769009332210,0.30893954,2995.2,2993.4,1.20419483]
[1769009332507,10.708675,2995.5,2993.6,3.34045964]
[1769009332688,0.30894286,2995.4,2993.6,3.34045964]
[1769009333008,0.30894286,2995.3,2993.6,3.34045964]
[1769009333208,0.30894286,2995.2,2993.6,6.68091928]
[1769009333417,0.30894286,2995.2,2993.7,0.72329193]
[1769009333593,0.30894286,2995.2,2993.7,0.552]
[1769009333981,0.002,2995.3,2993.7,0.552]
[1769009334286,0.002,2995.3,2993.6,6.68091928]
[1769009334606,0.002,2995.3,2993.8,6.68047296]
[1769009336418,0.31071875,2995.2,2993.8,10.02070944]
[1769009336575,0.002,2995.3,2994.1,12.04194833]
[1769009337096,0.002,2995.5,2994.1,12.04194833]
[1769009337280,12.01818234,2997.7,2994.1,12.04194833]
[1769009337480,0.128,2997.2,2994.3,12.04194833]
[1769009337785,0.31096814,2997.1,2994.5,12.04194833]
[1769009338010,0.31096814,2997.0,2994.7,12.04194833]
[1769009338205,1.23291505,2997.1,2994.7,12.04194833]
[1769009338206,0.31096814,2996.9,2994.7,12.04194833]
[1769009338420,0.31096814,2996.8,2994.8,0.552]
[1769009338717,0.31096814,2996.7,2994.9,6.67801928]
[1769009338916,0.31096814,2996.6,2994.9,6.67801928]
[1769009339219,0.31096814,2996.5,2995.0,13.21934762]
[1769009339408,1.23291505,2997.1,2995.0,13.21934762]
[1769009339409,0.31096814,2996.4,2995.0,13.21934762]
[1769009339637,0.35268625,2996.3,2995.0,0.72300193]
[1769009339929,0.31096814,2996.2,2995.1,0.552]
[1769009340132,0.31096814,2996.1,2995.1,0.552]
[1769009340300,1.23291505,2997.1,2994.9,12.49634569]
[1769009340503,0.31071837,2997.0,2995.3,12.49634569]
[1769009340860,0.31071837,2996.9,2995.3,12.49634569]
[1769009341002,5.15923229,2998.7,2995.3,12.49634569]
[1769009341003,11.77100716,2998.3,2995.3,12.49634569]
[1769009341336,4.840419,2998.7,2995.5,12.62434569]
[1769009341541,11.77100716,2998.4,2995.6,0.552]
[1769009341742,11.77100716,2998.2,2995.7,12.49634569]
[1769009341904,11.77100716,2998.2,2995.9,12.49634569]
[1769009342321,11.77100716,2998.2,2995.2,16.69337605]
[1769009342322,20.50148816,2998.0,2995.4,12.49634569]
[1769009342526,11.77100716,2997.8,2995.6,6.6764588]
[1769009342736,11.77100716,2997.8,2995.7,12.49634569]
[1769009342943,1.17710072,2997.7,2995.8,2.20656711]
[1769009343132,13.27328428,2998.3,2995.8,14.7029128]
[1769009343333,13.27328428,2998.3,2995.9,0.552]
[1769009343529,13.27328428,2998.3,2996.0,0.552]
[1769009343735,13.27328428,2998.3,2996.0,13.04834569]
[1769009344532,20.77113216,2998.2,2996.1,6.6753446]
[1769009344738,2.22734093,2998.1,2996.2,0.552]
[1769009344935,17.67297262,2998.0,2996.1,3.3376723]
[1769009345141,11.77100716,2997.9,2996.2,0.552]
[1769009345367,11.76766716,2997.9,2996.2,0.552]
[1769009345578,11.76766716,2997.9,2996.3,0.552]
[1769009345732,1.17676672,2997.8,2996.3,0.552]
[1769009346162,1.50227712,2998.3,2996.3,0.552]
[1769009346343,0.04169168,2998.2,2996.3,0.552]
[1769009346544,0.002,2998.1,2996.3,0.552]
[1769009346768,0.002,2998.1,2996.4,6.67467626]
[1769009347070,11.77100716,2997.9,2995.3,12.49634569]
[1769009347282,11.77100716,2997.7,2995.4,1.80163457]
[1769009347502,11.81270718,2997.6,2995.4,1.24963457]
[1769009347808,11.77100716,2997.6,2995.9,3.33783359]
[1769009347953,11.77100716,2997.6,2996.0,3.33777784]
[1769009348154,12.94810788,2997.5,2995.9,3.33786052]
[1769009348450,11.81270996,2997.4,2996.0,0.552]
[1769009348652,11.77100716,2997.4,2996.0,0.552]
[1769009348880,11.77100716,2997.2,2996.0,0.00019345]
[1769009349079,0.04170698,2997.1,2996.0,0.00019345]
[1769009349279,1.18127141,2997.0,2996.0,0.00019345]
[1769009349483,1.18127141,2997.0,2996.0,3.33797716]
[1769009349679,11.77100716,2997.7,2996.0,6.67576087]
[1769009349882,2.973136,2997.6,2996.0,0.00019345]
[1769009350189,0.04170141,2997.5,2996.1,0.552]
[1769009350387,11.81270857,2997.5,2996.2,0.552]
[1769009350561,11.77100716,2997.5,2996.3,1e-08]
[1769009350897,11.77100716,2997.3,2996.3,1e-08]
[1769009351107,1.17710072,2997.4,2996.3,1e-08]
[1769009351385,11.77100716,2997.8,2996.3,1e-08]
[1769009353472,6.43,2997.7,2996.3,1e-08]
[1769009353866,18.20100716,2997.7,2995.8,10.01401962]
[1769009354068,0.04170002,2997.6,2995.9,0.552]
[1769009354273,11.77100716,2997.6,2995.9,0.552]
[1769009354559,1.82010072,2997.5,2996.0,1.27480131]
[1769009354762,1.82010072,2997.5,2996.0,0.72280131]
[1769009354968,11.77100716,2997.4,2996.1,0.552]
[1769009355285,11.77100716,2997.4,2996.2,0.552]
[1769009355487,11.77100716,2997.4,2994.0,1.62848297]
[1769009355801,11.90486984,2997.0,2994.6,13.71234478]
[1769009356100,11.90486984,2997.0,2995.6,3.33822292]
[1769009356303,11.90486984,2997.0,2995.5,3.33829086]
[1769009356502,11.9465796,2996.9,2995.6,0.552]
[1769009356671,11.90486984,2996.9,2995.2,3.33857102]
[1769009356868,13.09535682,2996.8,2995.7,1e-08]
[1769009357172,13.09535682,2996.8,2995.2,0.6677347]
[1769009357173,18.33486984,2996.7,2995.2,0.6677347]
[1769009357379,18.33486984,2996.7,2995.2,3.33866631]
[1769009357574,18.33486984,2996.7,2995.3,0.552]
[1769009358377,18.33486984,2996.7,2995.4,0.552]
[1769009358781,11.90486984,2996.6,2995.4,0.552]
[1769009359383,11.90486984,2996.6,2995.4,3.89041386]
[1769009359577,1.83348698,2996.5,2995.6,0.001]
[1769009360173,6.43,2996.7,2995.6,0.001]
[1769009360403,0.31027487,2996.6,2995.6,0.001]
[1769009360601,0.31027487,2996.5,2995.6,0.001]
[1769009360915,0.31027487,2996.5,2993.7,12.95959483]
[1769009360916,18.876013,2996.1,2993.7,12.95959483]
[1769009361215,11.90486984,2995.9,2994.0,3.33990586]
[1769009361372,12.21520214,2995.8,2993.9,3.34007378]
[1769009361573,0.3103323,2995.7,2993.9,6.6801987]
[1769009361772,12.21520214,2995.7,2993.9,6.6801987]
[1769009362077,0.3103323,2995.6,2993.9,6.6801987]
[1769009362381,13.12639005,2995.5,2994.0,1.34961582]
[1769009362576,18.64520214,2995.4,2994.0,0.552]
[1769009362782,0.3103323,2995.3,2994.0,0.552]
[1769009363602,0.3103323,2995.3,2994.1,3.3399018]
[1769009363803,6.43,2995.4,2994.1,6.6798036]
[1769009364098,6.43,2995.4,2994.2,0.72318036]
[1769009364779,0.31075061,2995.3,2994.3,1e-08]
[1769009364971,0.31075061,2995.2,2994.3,1e-08]
[1769009365301,11.90486984,2995.4,2994.4,0.552]
[1769009365302,0.31075061,2995.1,2994.4,0.552]
[1769009365496,0.31075061,2995.0,2994.4,0.52742444]
[1769009365679,11.90486984,2995.4,2993.4,12.95959483]
[1769009365680,11.90486984,2995.4,2994.3,1e-08]
[1769009365875,1.50125797,2995.3,2994.3,1e-08]
[1769009366077,1.50125797,2995.3,2993.4,12.95959483]
[1769009366078,0.31077099,2995.2,2993.4,12.95959483]
[1769009366300,0.31077099,2995.1,2994.0,0.552]
[1769009366470,0.31077099,2995.0,2993.5,3.34056464]
[1769009366671,12.21564083,2994.9,2993.2,3.34082047]
[1769009366900,1.53233507,2994.8,2993.3,0.88608205]
[1769009367201,0.31077099,2994.7,2993.4,3.34065538]
[1769009367408,0.31077099,2994.7,2993.3,0.88608205]
[1769009367699,0.31077099,2994.7,2992.9,16.30074926]
[1769009367700,0.31077099,2994.7,2993.4,3.89266555]
[1769009368083,11.90486984,2995.0,2993.4,3.89266555]
[1769009368289,0.31059016,2994.9,2993.4,3.89266555]
[1769009368491,0.31059016,2994.8,2993.5,0.552]
[1769009368691,0.31059016,2994.7,2993.6,0.01682909]
[1769009368884,11.90486984,2995.0,2993.4,6.68134838]
[1769009369081,1.50085603,2994.9,2993.5,1.22013484]
[1769009369299,0.31036905,2994.8,2993.5,0.66813484]
[1769009369602,0.31036905,2994.8,2993.6,3.89244356]
[1769009369790,0.31036905,2994.8,2993.6,0.552]
[1769009370305,1.19048698,2994.9,2993.6,3.89245761]
[1769009370511,1.30953568,2994.8,2993.7,0.45605924]
[1769009370713,1.30953568,2994.8,2992.9,12.95959483]
[1769009370714,1.30953568,2994.8,2993.5,3.34056262]
[1769009371008,1.30953568,2994.8,2992.9,12.95959483]
[1769009371009,1.30953568,2994.8,2993.8,0.552]
[1769009371807,1.30953568,2994.8,2993.8,3.8921881]
[1769009372002,11.90486984,2995.4,2993.8,0.552]
[1769009372221,12.21488233,2995.3,2993.8,0.552]
[1769009372522,12.21488233,2995.2,2993.8,0.552]
[1769009372804,0.31001249,2995.1,2993.8,0.553]
[1769009372970,0.31001249,2995.0,2993.8,0.001]
[1769009373176,0.31001249,2994.9,2993.9,0.552]
[1769009373371,13.13709165,2995.1,2993.8,0.001]
[1769009373583,0.309973,2995.0,2993.8,0.553]
[1769009373805,0.30997276,2994.9,2993.8,0.553]
[1769009373998,0.30997276,2994.9,2993.8,0.001]
[1769009373999,1.34053296,2994.9,2993.8,0.001]
[1769009374421,0.3517344,2994.8,2993.8,0.001]
[1769009374722,19.560259,2993.9,2992.1,0.552]
[1769009374900,12.21486523,2993.8,2991.4,12.95959483]
[1769009375220,11.90486984,2993.6,2991.6,6.68529917]
[1769009375511,0.30999539,2993.5,2991.6,19.644894]
[1769009375712,0.30999539,2993.5,2991.7,12.95959483]
[1769009376114,1.22148652,2993.7,2991.8,13.51159483]
[1769009376314,11.90486984,2994.1,2991.8,13.51159483]
[1769009376613,1.50026746,2994.0,2992.0,12.95959483]
[1769009376819,1.19048698,2994.0,2992.1,0.01686315]
[1769009377110,1.19048698,2994.0,2992.0,12.95959483]
[1769009377715,1.19048698,2994.0,2992.1,6.68426856]
[1769009378015,1.19048698,2994.0,2992.1,22.98599767]
[1769009378311,1.30953568,2993.9,2992.2,1.36946904]
[1769009378689,1.30953568,2993.9,2992.3,0.552]
[1769009379214,1.30953568,2993.9,2992.2,1.36946904]
[1769009379509,5.48038873,2994.7,2992.3,0.552]
[1769009379510,11.90486984,2993.8,2992.3,0.552]
[1769009379678,11.90486984,2993.8,2992.3,3.8938537]
[1769009379883,11.90486984,2993.8,2992.4,0.552]
[1769009380397,11.90486984,2994.3,2992.4,0.552]
[1769009380605,11.90486984,2994.1,2992.4,0.552]
[1769009380792,6.67915676,2994.4,2992.5,0.552]
[1769009380793,11.90486984,2993.9,2992.5,0.552]
[1769009381196,1.22144889,2994.0,2992.6,0.01685588]
[1769009381389,11.90486984,2994.4,2992.5,0.552]
[1769009381584,0.3096294,2994.3,2992.6,6.68315176]
[1769009381790,11.90486984,2994.4,2992.6,6.68315176]
[1769009382126,0.30962587,2994.3,2992.7,0.01684975]
[1769009382298,11.90486984,2994.4,2992.7,12.95959483]
[1769009382502,1.19048698,2994.3,2992.8,1.96427466]